Cogmind - Beta 12 @@@ ROGUE MODE // 2023.06.16 @ 10:14:56 Player: wd Result: Destroyed by G-34 Mercenary with Small Laser Performance ------------- Evolutions (0) 0 Regions Visited (2) 400 Robots Destroyed (6) 30 Value Destroyed (217) 217 Prototype IDs (0) 0 Alien Tech Used (0) 0 Bonus (0) 0 TOTAL SCORE: 647 Bonus ------- None Cogmind --------- Core Integrity 0/250 Matter 300/300 Energy 250/250 System Corruption 0% Temperature Cool (6) Movement Rolling (80) Location -10/Mines Parts ------- > --- POWER (1) -------- Ion Engine > --- PROPULSION (2) --- Wheel Wheel > --- UTILITY (2) ------ Seismic Detector Targeting Computer > --- WEAPON (2) ------- Small Laser Small Laser > --- INVENTORY (5) ---- Light Ion Engine Heat Sink Medium Matter Pod (57) Improved Terrain Scanner Improved Terrain Scanner Peak State ------------ > --- POWER ------------ Light Nuclear Core > --- PROPULSION ------- Wheel Wheel > --- UTILITY ---------- Heat Sink Improved Heat Sink > --- WEAPON ----------- Light Assault Rifle Light Assault Rifle > --- INVENTORY -------- Aluminum Leg Aluminum Leg Terrain Scanner [Rating: 11] Favorites ----------- Power Light Nuclear Core Engine Light Ion Engine Power Core Light Nuclear Core Propulsion Wheel Leg Aluminum Leg Wheel Wheel Utility Targeting Computer Device Terrain Scanner Processor Targeting Computer Weapon Light Assault Rifle Energy Gun Small Laser Ballistic Gun Light Assault Rifle Special Weapon Mining Laser Build | -11 -10 -10 ------- Run | Jun Mat Min Slots Evolved . | . . . Power . | . . . Propulsion . | . . . Utility . | . . . Weapon . | . . . Parts Attached 30 | 6 8 16 Power 5 | 1 1 3 Engine 4 | 1 . 3 Core 1 | . 1 . Reactor . | . . . Propulsion 10 | 2 2 6 Treads . | . . . Leg 3 | . 2 1 Wheel 7 | 2 . 5 Hover . | . . . Flight . | . . . Utility 6 | 1 3 2 Device 5 | 1 2 2 Storage . | . . . Processor 1 | . 1 . Hackware . | . . . Protection . | . . . Artifact . | . . . Weapon 9 | 2 2 5 Energy Gun 3 | 1 . 2 Energy Cannon . | . . . Ballistic Gun 4 | 1 2 1 Ballistic Cannon . | . . . Launcher . | . . . Special Weapon 2 | . . 2 Impact Weapon . | . . . Slashing Weapon . | . . . Piercing Weapon . | . . . Special Melee Weapon . | . . . Unidentified Prototypes . | . . . Parts Lost 11 | . 2 9 Power 3 | . 1 2 Propulsion 3 | . . 3 Utility 1 | . . 1 Weapon 4 | . 1 3 Highest Loss Streak 4 | . 2 4 To Critical Strikes . | . . . Average Slot Usage (%) 90 | . 91 90 Engine 4 | . 5 3 Core 7 | . 7 7 Leg 13 | . 1 18 Wheel 13 | . 27 7 Device 13 | . 15 12 Processor 11 | . 6 14 Energy Gun 5 | . 5 5 Ballistic Gun 18 | . 22 16 Special Weapon 1 | . . 2 Naked Turns . | . . . Heaviest Build 9 | 6 9 8 Greatest Support 20 | 20 20 20 Greatest Overweight (x) . | . . . Average Overweight (x) . | . . . Largest Inventory Capacity 5 | 5 5 5 Average Capacity 5 | 5 5 5 Most Carried 5 | 5 5 5 Average Carried 4 | 2 4 4 Final Capacity 5 | 5 5 5 Final Carried 5 | 3 5 5 Class Distribution -------------------- 85% | Mutant 14% | Scavenger-Mutant Dominant Class ---------------- Mutant | -10/Materials Mutant | -10/Mines Resources | -11 -10 -10 ----------- Run | Jun Mat Min Matter Collected 545 | 218 56 271 Remotely . | . . . Salvage Created 242 | 30 56 156 Parts 10 | 1 2 7 Haulers Intercepted . | . . . Recyclers Shooed . | . . . Parts Field Recycled . | . . . Retrieved Matter . | . . . Parts Self-Destructed . | . . . Prevented . | . . . Kills | -11 -10 -10 ------- Run | Jun Mat Min Combat Hostiles Destroyed 6 | 1 1 4 Guns 5 | 1 1 3 Cannons 1 | . . 1 Classes Destroyed 1 | 1 . . Grunt 6 | 1 1 4 Best Kill Streak 1 | 1 1 1 Combat Bots Only 1 | 1 1 1 Max Kills in Single Turn 1 | 1 1 1 Gunslinging . | . . . Exploded . | . . . Melee . | . . . Uniques/NPCs Destroyed . | . . . Combat | -11 -10 -10 -------- Run | Jun Mat Min Damage Taken 1092 | 44 349 699 Core 252 | 22 71 159 Absorbed by Shields . | . . . Core Remaining (%) 91 | 91 . . Volleys Fired 55 | 3 15 37 Largest 2 | 2 2 2 Hottest 140 | 60 60 140 Shots Fired 85 | 6 30 49 Gun 77 | 6 30 41 Cannon . | . . . Launcher . | . . . Special 8 | . . 8 Kinetic 45 | 3 17 25 Thermal 40 | 3 13 24 Explosive . | . . . Electromagnetic . | . . . Robot Hit Streak 11 | 3 4 11 Robot Miss Streak 5 | 1 3 5 Penetration Max . | . . . Secondary Targets . | . . . Shots Hit Robots 50 | 4 18 28 Core Hits 15 | 2 4 9 Critical Kills . | . . . Critical Parts Destroyed . | . . . Critical Strikes . | . . . Melee Attacks . | . . . Impact . | . . . Slashing . | . . . Piercing . | . . . Sneak Attacks . | . . . Combat Hostiles . | . . . Follow-up Attacks . | . . . Damage Inflicted 429 | 32 158 239 Guns 396 | 32 158 206 Cannons . | . . . Explosions . | . . . Melee . | . . . Ramming . | . . . Kinetic 273 | 22 113 138 Thermal 156 | 10 45 101 Explosive . | . . . Electromagnetic . | . . . Impact . | . . . Slashing . | . . . Piercing . | . . . Highest Corruption . | . . . Average Corruption . | . . . Corruption Purged . | . . . Corruption Blocked . | . . . Overload Shots . | . . . Overflow Damage . | . . . Projectiles . | . . . Explosions . | . . . Melee . | . . . Knockbacks . | . . . Impact . | . . . Kinetic . | . . . Secondary . | . . . Self-Inflicted Damage . | . . . Shots . | . . . Rammed . | . . . Targets Rammed . | . . . Kicked . | . . . Crushed . | . . . Highest Temperature 64 | 32 9 64 Average Temperature 17 | 20 6 19 Received Heat Transfer 582 | 24 192 366 Siege Activations . | . . . Robots Corrupted . | . . . Combat Hostiles . | . . . Parts Fried . | . . . Impact Corruptions . | . . . Robots Melted . | . . . Combat Hostiles . | . . . Parts Melted . | . . . Heat Transferred 400 | 25 100 275 Parts Sabotaged . | . . . Parts Stolen . | . . . Parts Stripped . | . . . Power Chain Reactions . | . . . Missiles Intercepted . | . . . Alert | -11 -10 -10 ------- Run | Jun Mat Min Peak Influence 105 | 20 105 41 Initial 40 | . 13 40 Average 28 | 2 40 26 Maximum Alert Level . | . . . Low Security (%) 100 | 100 100 100 Level 1 . | . . . Level 2 . | . . . Level 3 . | . . . Level 4 . | . . . Level 5 . | . . . High Security . | . . . Max Security . | . . . Squads Dispatched 2 | . 2 . Investigation 1 | . 1 . Extermination . | . . . Reinforcement 1 | . 1 . Assault . | . . . Garrison . | . . . Intercept . | . . . Searches Triggered . | . . . Construction Impeded . | . . . Haulers Reinforced . | . . . Active Scanning Responses . | . . . Cargo Convoy Interrupts . | . . . Stealth | -11 -10 -10 --------- Run | Jun Mat Min Distress Signals 1 | . 1 . Communications Jammed . | . . . Distress Signals . | . . . Times Spotted 21 | 1 11 9 Peak Tracking Total 6 | 1 6 4 Tactical Retreats 2 | . 2 . Traps | -11 -10 -10 ------- Run | Jun Mat Min Traps Triggered . | . . . Indirectly . | . . . Trap Hack Attempts . | . . . Triggered . | . . . Disarmed . | . . . Reprogrammed . | . . . Reused . | . . . Traps Extracted . | . . . Installed . | . . . Triggered . | . . . Machines | -11 -10 -10 ---------- Run | Jun Mat Min Machines Disabled . | . . . Max in Single Turn . | . . . Machines Repaired . | . . . Machines Sabotaged . | . . . Overloaded Fab Kills . | . . . Hacking | -11 -10 -10 --------- Run | Jun Mat Min Machines Accessed 3 | . 3 . Terminals 2 | . 2 . Fabricators . | . . . Repair Stations . | . . . Recycling Units 1 | . 1 . Scanalyzers . | . . . Garrison Access . | . . . Total Hacks 12 | . 12 . Successful 8 | . 8 . Failed 4 | . 4 . Catastrophic . | . . . Database Lockouts . | . . . Manual 1 | . 1 . Terminals 10 | . 10 . Fabricators . | . . . Repair Stations . | . . . Recycling Units 2 | . 2 . Scanalyzers . | . . . Garrison Access . | . . . Terminal Hacks 6 | . 6 . Record 2 | . 2 . Alert Level 1 | . 1 . Locate Traps 1 | . 1 . Surveillance Status 1 | . 1 . Zone Layout 1 | . 1 . Fabricator Hacks . | . . . Repair Station Hacks . | . . . Recycling Unit Hacks 2 | . 2 . Process 1 | . 1 . Retrieve Matter 1 | . 1 . Scanalyzer . | . . . Garrison Access Hacks . | . . . Unauthorized Hacks . | . . . Terminals . | . . . Fabricators . | . . . Repair Stations . | . . . Recycling Units . | . . . Scanalyzers . | . . . Garrison Access . | . . . Data Cores Recovered . | . . . Used . | . . . Hacking Detections 2 | . 2 . Full Trace Events 2 | . 2 . Feedback Events . | . . . Feedback Blocked . | . . . Robot Schematics Acquired . | . . . Robots Built . | . . . Authchips . | . . . Time . | . . . Total Robot Build Rating . | . . . Part Schematics Acquired . | . . . Parts Built . | . . . Authchips . | . . . Time . | . . . Total Part Build Rating . | . . . Parts Repaired . | . . . Time . | . . . Parts Recycled . | . . . Recycled Matter 2 | . 2 . Retrieved Matter 2 | . 2 . Retrieved Components . | . . . Parts Scanalyzed . | . . . Part Schematics Acquired . | . . . Parts Damaged . | . . . Bothacking | -11 -10 -10 ------------ Run | Jun Mat Min Used RIF Installer . | . . . Robots Hacked . | . . . Non-combat . | . . . Combat . | . . . Robot Hacks Applied . | . . . Relay Couplers Released . | . . . Fabnet Peak Effective % . | . . . Robots Rewired . | . . . Allies Hacked . | . . . Hacks Repelled . | . . . Allies | -11 -10 -10 -------- Run | Jun Mat Min Total Allies . | . . . Largest Group . | . . . Highest-Rated Group . | . . . Highest-Rated Ally . | . . . Total Orders . | . . . Ally Attacks . | . . . Total Damage . | . . . Kills . | . . . Allies Corrupted . | . . . Allies Melted . | . . . Intel | -11 -10 -10 ------- Run | Jun Mat Min Robot Analysis Total . | . . . Derelict Logs Recovered . | . . . Drone Launches . | . . . Drone Recoveries . | . . . Exploration | -11 -10 -10 ------------- Run | Jun Mat Min Turns Passed 1080 | 70 288 722 Spaces Moved 682 | 67 250 365 Core 31 | 22 . 9 Treads . | . . . Legs 231 | . 11 220 Wheels 420 | 45 239 136 Hover . | . . . Flight . | . . . Fastest Speed 50 | 50 80 50 Average Speed 92 | 70 81 103 Slowest Speed 120 | 80 120 120 Overloaded Moves . | . . . Propulsion Burnouts . | . . . Robots Hopped . | . . . Cave-ins Triggered . | . . . Exploration Rate (%) 27 | 6 32 44 Regions Visited 2 Branch Regions 1 Pre-discovered Areas . | . . . Known Exits Taken . | . . . Unknown Exits Taken 2 | 1 1 . Scrap Searched . | . . . Spaces Dug . | . . . Terrain Destroyed 1 | . . 1 Melee . | . . . Projectile 1 | . . 1 AOE . | . . . Terrain Rammed . | . . . Walls Destroyed . | . . . Machines Disabled . | . . . Actions | -11 -10 -10 --------- Run | Jun Mat Min Total 1046 | 84 307 655 Wait 241 | . 23 218 Move 680 | 66 249 365 Hop . | . . . Pick Up 31 | 9 8 14 Fast Attach . | . . . Attach 21 | 6 4 11 Detach 1 | . 1 . Swap 9 | . 4 5 Drop 8 | . 3 5 Fire 55 | 3 15 37 Melee . | . . . Ram . | . . . Kick . | . . . Crush . | . . . Escape Stasis . | . . . Rewire . | . . . Trap . | . . . Miscellaneous . | . . . Route ------- -11/Junkyard -10/Materials -10/Mines History --------- Turn | Location | Event 2 | -11/Junkyard | Met Revision 17 53 | -11/Junkyard | Discovered new exit (range 8) 71 | -11/Junkyard | Entered Materials 304 | -10/Materials | Build established: Mutant 332 | -10/Materials | Discovered new exit (range 14) 359 | -10/Materials | Entered Mines 530 | -10/Mines | Excavation squad dispatched 530 | -10/Mines | A large section of the Mines collapsed 765 | -10/Mines | Core integrity fell below 50% 780 | -10/Mines | Excavation squad dispatched 814 | -10/Mines | Lost 4 parts (1p1u2w) 887 | -10/Mines | Core integrity fell below 20% 901 | -10/Mines | Lost 4 parts (1p2n1w) 1030 | -10/Mines | Excavation squad dispatched 1081 | -10/Mines | Destroyed by G-34 Mercenary with Small Laser Last Messages --------------- Dropped Mining Laser. Dropped Ion Engine. Acquired Ion Engine. Acquired 25 matter. Acquired Wheel. Dropped Wheel. Dropped Heat Sink. Acquired Lgt. Ion Engine. Acquired Imp. Terrain Scanner. Acquired 14 matter. Acquired 2 matter. Acquired 26 matter. ALERT: Derelict activity in mines confirmed. Dispatching additional escorted excavation squad. G-34 Mercenary destroyed. Acquired 36 matter. Dropped Aluminum Leg. Acquired Heat Sink. K-01 Serf collects debris. U-05 Engineer destroyed. Map ----- +----------------------------------------------------+ | ????## #????????####????????????? | | ????# ##????????????????????????? | | ????# ##??????????????#??????????? | | ????# #??????????#?####??????????? | | ????## ### #???????????## ##?????????? | | ?????###??## #???????????# ##????????? | | ??#???#???## ##??????????## #????????? | | ?#????#??## #??#####???## ##???????? | | ????????## #### ##### #????????? | | ????????# ## #????????? | | ????????# ##????????? | | ????????# #?????????? | | ?? ?????## != ##????????? | | ?????????# #### ##???????? | | ?????????## ###?### ####????? | | ???? ?????# ###????## ##???? | | ??# ????## ##??#?#?## #???? | | ?? ?? ??####??##?### #???? | | ??? ? ??#?????#??# * ##???? | | ???? ???????????#?# | ##????? | | ????? ?#???#????#?## ## ###?????? | | ?????? ????????#????###### ## #???????? | | ??????? #??#?????#?####??# ## #???????? | | ????????#" ??????#??## #### ## #???????? | | ????????# ##?#?#### ### ## #???????? | | ????????# #?#### |%!t @## = #???????? | | ????????# ##t;r g=g## = ##???????? | | ????#?### %[ #### ##??????#?? | | ?????#?# " " #???## ##?????????? | | ???????# " " #??#### #??????????? | | ????#??# " % "## #????## ##?????????? | | ??????## %" ####"###?#?# #?????????? | | ??????#### ???## #?##### #?????????? | | ????????### ?#??# ### ## ##?????????? | | ?????##?## ????#?# ## ## #??????????? | | ???????# ?##????# # ## #??????????# | | ??????# ???##???## #??????????? | | ?????? ??????????##### #??????????? | | ?????????"#??????????###########??????????? | | ????????????#?????#???????????????????????? | | ?????????????#??#?##??????????????????????? | | ??????????????????????????????????????????? | | ??????????????????????#???????????????????? | | ??????????????????????????????????????????? | | ??????????????????????????????????????????? | | ??????????????????????????????????????????? | | | | | | | | | +----------------------------------------------------+ Best States ------------- Heat Dissipation 49 Energy Generation 14 Energy Capacity 250 Matter Stores 300 Matter Capacity 300 Sight Range 16 Terrain Scan Range 14 Terrain Scan Density 10 Evasion (%) 55 Targeting Accuracy 5 Item Schematics ----------------- None Robot Schematics ------------------ None Fabricated ------------ Nothing Alien Tech Used ----------------- None Achievements -------------- One Hack Too Far Challenges ------------ None Game ------ Seed MagneticCoreDisintegrator Manual? 0 Play Time 00:33:28 Cumulative 1.3 hours Start 2023.06.16 @ 08:51:01 End 2023.06.16 @ 10:14:56 Sessions 1 Manual Loads 0 Difficulty Rogue Special Mode None Game No. 2 Rogue 2 Adventurer 0 Explorer 0 Win Type - Total 0 Types 0/0/0/0/0/0/0/0/0 Lore% 0 Gallery% 1 Achievement% 6 Wizard Run 0 Options --------- ASCII 0 Keyboard 0 Movement Numpad Keybinds 0 Fullscreen 1 Font 24/Smallcaps Map View 76x50 Tactical HUD 0 Map Filters NONE Filters NONE Steam 1 RUN: be72bf81-0d41-4a31-af20-09a1737757f3